[Event "*** Titled Tuesday Blitz"]
[Site "Chess.com"]
[Date "2018.10.02"]
[Round "2"]
[White "WPWPWP-2015"]
[Black "woodhy"]
[Result "0-1"]
[WhiteElo "2288"]
[BlackElo "2425"]
[TimeControl "180+2"]
[EndTime "13:21:33 PDT"]
[Termination "woodhy won by checkmate"]

1. e4 {[%clk 0:03:01.9]} 1... e6 {[%clk 0:02:54.8]} 2. d4 {[%clk 0:03:01.4]}
2... d5 {[%clk 0:02:56.7]} 3. exd5 {[%clk 0:02:54.1]} 3... exd5 {[%clk
0:02:57.6]} 4. Nf3 {[%clk 0:02:54.4]} 4... Bd6 {[%clk 0:02:57.1]} 5. Bd3 {[%clk
0:02:54.8]} 5... Ne7 {[%clk 0:02:52.3]} 6. Bg5 {[%clk 0:02:54.4]} 6... h6 {[%clk
0:02:52.4]} 7. Bh4 {[%clk 0:02:53.4]} 7... c6 {[%clk 0:02:54]} 8. Bg3 {[%clk
0:02:52.4]} 8... Bf5 {[%clk 0:02:53.8]} 9. O-O {[%clk 0:02:47.4]} 9... O-O
{[%clk 0:02:49]} 10. Nc3 {[%clk 0:02:41.9]} 10... Bxd3 {[%clk 0:02:49.4]} 11.
Qxd3 {[%clk 0:02:41.9]} 11... Ng6 {[%clk 0:02:48.9]} 12. Rae1 {[%clk 0:02:38.2]}
12... Nf4 {[%clk 0:02:48.5]} 13. Qd2 {[%clk 0:02:35.9]} 13... Ne6 {[%clk
0:02:43.2]} 14. Nd1 {[%clk 0:02:28.2]} 14... Qc7 {[%clk 0:02:40.6]} 15. Ne5
{[%clk 0:02:19.8]} 15... Nd7 {[%clk 0:02:31.6]} 16. c3 {[%clk 0:02:00]} 16...
Rae8 {[%clk 0:02:24.7]} 17. Nd3 {[%clk 0:01:56.3]} 17... c5 {[%clk 0:02:18]} 18.
dxc5 {[%clk 0:01:52.6]} 18... Ndxc5 {[%clk 0:02:19.9]} 19. Bxd6 {[%clk
0:01:51.4]} 19... Qxd6 {[%clk 0:02:21.8]} 20. Nxc5 {[%clk 0:01:47.2]} 20... Qxc5
{[%clk 0:02:23.7]} 21. Ne3 {[%clk 0:01:42.2]} 21... d4 {[%clk 0:02:24.8]} 22.
cxd4 {[%clk 0:01:42.3]} 22... Nxd4 {[%clk 0:02:26.7]} 23. Rc1 {[%clk 0:01:36.3]}
23... Qb6 {[%clk 0:02:18.6]} 24. Rfd1 {[%clk 0:01:22.1]} 24... Rd8 {[%clk
0:02:05.1]} 25. Qe1 {[%clk 0:00:51.2]} 25... Qxb2 {[%clk 0:02:01.7]} 26. Rb1
{[%clk 0:00:51.5]} 26... Qxa2 {[%clk 0:01:58.4]} 27. Ra1 {[%clk 0:00:44.3]}
27... Qb3 {[%clk 0:01:43.1]} 28. Rdb1 {[%clk 0:00:39.8]} 28... Qe6 {[%clk
0:01:37.1]} 29. Rxa7 {[%clk 0:00:38.5]} 29... Qg6 {[%clk 0:01:33.4]} 30. Kh1
{[%clk 0:00:27]} 30... b6 {[%clk 0:01:25.2]} 31. Rb7 {[%clk 0:00:25.1]} 31... b5
{[%clk 0:01:25.6]} 32. Qb4 {[%clk 0:00:21.1]} 32... Rfe8 {[%clk 0:01:22]} 33.
Rd1 {[%clk 0:00:19.9]} 33... Nc2 {[%clk 0:01:21.5]} 34. Rxd8 {[%clk 0:00:14.3]}
34... Rxd8 {[%clk 0:01:22.1]} 35. Qxb5 {[%clk 0:00:10.9]} 35... Nxe3 {[%clk
0:01:20.1]} 36. Rb8 {[%clk 0:00:08.2]} 36... Qxg2# {[%clk 0:01:19.7]} 0-1

[Event "*** Titled Tuesday Blitz"]
[Site "Chess.com"]
[Date "2018.10.02"]
[Round "2"]
[White "Vamostodorecto"]
[Black "KRASAVCHIK2002"]
[Result "1-0"]
[WhiteElo "2418"]
[BlackElo "2272"]
[TimeControl "180+2"]
[EndTime "13:21:33 PDT"]
[Termination "Vamostodorecto won by resignation"]

1. d4 {[%clk 0:03:01.9]} 1... Nf6 {[%clk 0:02:59.5]} 2. c4 {[%clk 0:03:01.7]}
2... c5 {[%clk 0:02:58]} 3. d5 {[%clk 0:03:01.7]} 3... b5 {[%clk 0:02:56.3]} 4.
cxb5 {[%clk 0:03:03.6]} 4... a6 {[%clk 0:02:56.2]} 5. Nc3 {[%clk 0:03:05.5]}
5... axb5 {[%clk 0:02:56.7]} 6. e4 {[%clk 0:03:07.4]} 6... b4 {[%clk 0:02:55.8]}
7. Nb5 {[%clk 0:03:08.5]} 7... d6 {[%clk 0:02:42.3]} 8. a4 {[%clk 0:03:06.7]}
8... Nbd7 {[%clk 0:02:10.9]} 9. Bd3 {[%clk 0:02:47.9]} 9... g6 {[%clk
0:02:09.6]} 10. b3 {[%clk 0:02:48.1]} 10... Bg7 {[%clk 0:02:08.3]} 11. Bb2
{[%clk 0:02:49.3]} 11... O-O {[%clk 0:02:09.3]} 12. Nf3 {[%clk 0:02:49.4]} 12...
Ne8 {[%clk 0:02:00.2]} 13. Bxg7 {[%clk 0:02:48.8]} 13... Kxg7 {[%clk 0:02:01.4]}
14. O-O {[%clk 0:02:49.2]} 14... f6 {[%clk 0:01:52.7]} 15. Nd2 {[%clk
0:02:41.9]} 15... Ne5 {[%clk 0:01:49.9]} 16. Be2 {[%clk 0:02:40.7]} 16... Nc7
{[%clk 0:01:47.9]} 17. h3 {[%clk 0:02:25.4]} 17... Bd7 {[%clk 0:01:43.2]} 18.
Nxc7 {[%clk 0:02:19.8]} 18... Qxc7 {[%clk 0:01:43.8]} 19. f4 {[%clk 0:02:21.4]}
19... Nf7 {[%clk 0:01:44.5]} 20. Nc4 {[%clk 0:02:19.3]} 20... f5 {[%clk
0:01:12]} 21. Bf3 {[%clk 0:02:03.4]} 21... fxe4 {[%clk 0:01:11.1]} 22. Bxe4
{[%clk 0:02:05.3]} 22... Rae8 {[%clk 0:01:12.1]} 23. Qd3 {[%clk 0:02:02.6]}
23... e6 {[%clk 0:01:11.2]} 24. Rad1 {[%clk 0:01:53.5]} 24... exd5 {[%clk
0:01:09]} 25. Bxd5 {[%clk 0:01:55.4]} 25... Bf5 {[%clk 0:01:06.7]} 26. Qd2
{[%clk 0:01:55.1]} 26... Nd8 {[%clk 0:01:04.9]} 27. g4 {[%clk 0:01:50]} 27...
Bc8 {[%clk 0:01:03]} 28. Bg2 {[%clk 0:01:42.1]} 28... Ne6 {[%clk 0:00:47.3]} 29.
Nxd6 {[%clk 0:01:30.3]} 29... Rd8 {[%clk 0:00:46.9]} 30. Qe3 {[%clk 0:01:07.5]}
30... Nd4 {[%clk 0:00:42]} 31. Qe5+ {[%clk 0:01:06.2]} 31... Kh6 {[%clk
0:00:21.5]} 32. Nf5+ {[%clk 0:01:01.6]} 32... Bxf5 {[%clk 0:00:19.8]} 33. Qxc7
{[%clk 0:01:02.1]} 1-0

[Event "*** Titled Tuesday Blitz"]
[Site "Chess.com"]
[Date "2018.10.02"]
[Round "2"]
[White "Fighterman91"]
[Black "joppie2"]
[Result "0-1"]
[WhiteElo "2723"]
[BlackElo "2673"]
[TimeControl "180+2"]
[EndTime "13:21:38 PDT"]
[Termination "joppie2 won by resignation"]

1. d4 {[%clk 0:03:01.9]} 1... d5 {[%clk 0:02:58.5]} 2. Bf4 {[%clk 0:03:02.6]}
2... e6 {[%clk 0:03:00.4]} 3. e3 {[%clk 0:03:03.8]} 3... Nf6 {[%clk 0:03:01.9]}
4. Nd2 {[%clk 0:03:04.2]} 4... c5 {[%clk 0:03:03.2]} 5. c3 {[%clk 0:03:05.7]}
5... Nc6 {[%clk 0:03:04.6]} 6. Ngf3 {[%clk 0:03:07.3]} 6... Be7 {[%clk
0:03:06.2]} 7. Ne5 {[%clk 0:03:07.1]} 7... O-O {[%clk 0:03:07.2]} 8. Bd3 {[%clk
0:03:03.6]} 8... Nd7 {[%clk 0:03:08.1]} 9. O-O {[%clk 0:02:54.2]} 9... g6 {[%clk
0:02:52.8]} 10. Bg3 {[%clk 0:02:36]} 10... f6 {[%clk 0:02:37.9]} 11. Nef3 {[%clk
0:02:14.6]} 11... f5 {[%clk 0:02:37]} 12. c4 {[%clk 0:02:14.8]} 12... cxd4
{[%clk 0:02:29.4]} 13. cxd5 {[%clk 0:02:14.7]} 13... exd5 {[%clk 0:02:30.1]} 14.
Nb3 {[%clk 0:01:49.2]} 14... dxe3 {[%clk 0:02:30.4]} 15. fxe3 {[%clk 0:01:50]}
15... Nf6 {[%clk 0:02:32.3]} 16. Nfd4 {[%clk 0:01:40.1]} 16... Ne4 {[%clk
0:02:31.8]} 17. Bxe4 {[%clk 0:01:08.9]} 17... dxe4 {[%clk 0:02:32.2]} 18. Nxc6
{[%clk 0:01:07.4]} 18... bxc6 {[%clk 0:02:32.5]} 19. Nd4 {[%clk 0:00:32.6]}
19... Qd5 {[%clk 0:02:25.5]} 20. Rc1 {[%clk 0:00:23.3]} 20... Bd7 {[%clk
0:02:20.4]} 21. Nb3 {[%clk 0:00:08.7]} 21... Be6 {[%clk 0:02:20.2]} 22. Nd4
{[%clk 0:00:04.2]} 22... c5 {[%clk 0:02:07.7]} 23. Nxe6 {[%clk 0:00:05.4]} 23...
Qxe6 {[%clk 0:02:09.6]} 24. Qa4 {[%clk 0:00:06.5]} 24... Rfd8 {[%clk 0:02:08.4]}
25. Rfd1 {[%clk 0:00:07]} 25... a6 {[%clk 0:02:01.8]} 26. b3 {[%clk 0:00:05]}
26... Kf7 {[%clk 0:02:02.4]} 27. Bf4 {[%clk 0:00:04.5]} 27... h5 {[%clk
0:01:50]} 28. Qa5 {[%clk 0:00:05.3]} 28... Rxd1+ {[%clk 0:01:40.6]} 29. Rxd1
{[%clk 0:00:06.2]} 29... Ra7 {[%clk 0:01:42.5]} 30. Bb8 {[%clk 0:00:03.8]} 30...
Rd7 {[%clk 0:01:40.6]} 31. Rxd7 {[%clk 0:00:04.3]} 31... Qxd7 {[%clk 0:01:42.5]}
32. Qxa6 {[%clk 0:00:05.6]} 32... Qd2 {[%clk 0:01:42]} 33. Qc4+ {[%clk
0:00:06.6]} 33... Kf8 {[%clk 0:01:42.6]} 34. Bf4 {[%clk 0:00:06.8]} 34... g5
{[%clk 0:01:43.9]} 35. Bxg5 {[%clk 0:00:05.6]} 35... Bxg5 {[%clk 0:01:44.1]} 36.
Qxc5+ {[%clk 0:00:07.2]} 36... Kg7 {[%clk 0:01:45.7]} 37. Qc7+ {[%clk
0:00:03.5]} 37... Kg6 {[%clk 0:01:42.8]} 38. Qc6+ {[%clk 0:00:05]} 38... Bf6
{[%clk 0:01:43]} 39. Qe8+ {[%clk 0:00:05.9]} 39... Kg7 {[%clk 0:01:44.6]} 40.
Qd7+ {[%clk 0:00:04.9]} 40... Qxd7 {[%clk 0:01:44.1]} 0-1

[Event "*** Titled Tuesday Blitz"]
[Site "Chess.com"]
[Date "2018.10.02"]
[Round "2"]
[White "nubair1198"]
[Black "PowerThinking2650"]
[Result "1-0"]
[WhiteElo "2519"]
[BlackElo "2344"]
[TimeControl "180+2"]
[EndTime "13:21:41 PDT"]
[Termination "nubair1198 won by resignation"]

1. c4 {[%clk 0:03:01.9]} 1... Nf6 {[%clk 0:03:00.5]} 2. Nf3 {[%clk 0:03:02.7]}
2... g6 {[%clk 0:03:01.6]} 3. b3 {[%clk 0:03:03.7]} 3... Bg7 {[%clk 0:03:03.1]}
4. Bb2 {[%clk 0:03:05.4]} 4... O-O {[%clk 0:03:04.2]} 5. g3 {[%clk 0:03:06.6]}
5... d5 {[%clk 0:03:05.1]} 6. cxd5 {[%clk 0:03:07.4]} 6... Qxd5 {[%clk 0:03:07]}
7. Bg2 {[%clk 0:03:08.2]} 7... a5 {[%clk 0:02:59.2]} 8. O-O {[%clk 0:03:09]}
8... Qh5 {[%clk 0:02:58.6]} 9. Re1 {[%clk 0:02:59.7]} 9... Bh3 {[%clk
0:02:56.3]} 10. e4 {[%clk 0:02:29.2]} 10... Nc6 {[%clk 0:02:45.6]} 11. Na3
{[%clk 0:02:25.6]} 11... Rad8 {[%clk 0:02:38.9]} 12. Nc4 {[%clk 0:02:26]} 12...
Ng4 {[%clk 0:02:30.9]} 13. Bxg7 {[%clk 0:02:17.6]} 13... Kxg7 {[%clk 0:02:32.8]}
14. Nh4 {[%clk 0:02:17.2]} 14... Bxg2 {[%clk 0:02:30.5]} 15. Kxg2 {[%clk
0:02:08.5]} 15... b5 {[%clk 0:01:51.2]} 16. Ne3 {[%clk 0:02:08.9]} 16... Nxe3+
{[%clk 0:01:39.9]} 17. Rxe3 {[%clk 0:02:10.6]} 17... Qxd1 {[%clk 0:01:28.3]} 18.
Rxd1 {[%clk 0:02:12.5]} 18... Nb4 {[%clk 0:01:29.6]} 19. Rc3 {[%clk 0:02:04]}
19... Nxa2 {[%clk 0:01:08]} 20. Rxc7 {[%clk 0:02:04.8]} 20... Rd4 {[%clk
0:00:57.7]} 21. Nf3 {[%clk 0:02:05.7]} 21... Rxe4 {[%clk 0:00:54.9]} 22. Ra1
{[%clk 0:02:07.2]} 22... Nb4 {[%clk 0:00:50.3]} 23. Rxa5 {[%clk 0:02:09.1]}
23... Rb8 {[%clk 0:00:39.5]} 24. Rc5 {[%clk 0:01:59.2]} 24... Nd3 {[%clk
0:00:20.9]} 25. Rd5 {[%clk 0:01:57.5]} 25... Ne1+ {[%clk 0:00:14.5]} 26. Nxe1
{[%clk 0:01:58]} 26... Rxe1 {[%clk 0:00:16.4]} 27. Raxb5 {[%clk 0:01:59.8]}
27... Rxb5 {[%clk 0:00:15.6]} 28. Rxb5 {[%clk 0:02:01.7]} 28... Rd1 {[%clk
0:00:14.4]} 29. Rd5 {[%clk 0:02:01.6]} 29... e6 {[%clk 0:00:15.1]} 30. Rd3
{[%clk 0:01:59.3]} 30... e5 {[%clk 0:00:14.4]} 31. Kf3 {[%clk 0:01:56.9]} 31...
Rb1 {[%clk 0:00:12.2]} 32. Ke4 {[%clk 0:01:56.9]} 32... Re1+ {[%clk 0:00:10]}
33. Kd5 {[%clk 0:01:57.6]} 33... Kf6 {[%clk 0:00:11.1]} 34. b4 {[%clk
0:01:57.5]} 34... Rb1 {[%clk 0:00:08.4]} 35. Rf3+ {[%clk 0:01:56.2]} 35... Ke7
{[%clk 0:00:08.9]} 36. Kc5 {[%clk 0:01:55.7]} 36... Rc1+ {[%clk 0:00:06.4]} 37.
Kd5 {[%clk 0:01:55.3]} 37... f6 {[%clk 0:00:06.2]} 38. b5 {[%clk 0:01:55.9]}
38... Rc2 {[%clk 0:00:06.9]} 39. Rd3 {[%clk 0:01:50.7]} 39... Rc8 {[%clk
0:00:05.1]} 40. b6 {[%clk 0:01:51.7]} 40... Kd7 {[%clk 0:00:05.2]} 41. Rc3
{[%clk 0:01:51.2]} 41... Rb8 {[%clk 0:00:04]} 42. Rc7+ {[%clk 0:01:52.3]} 42...
Kd8 {[%clk 0:00:05.1]} 43. Kc6 {[%clk 0:01:53.9]} 1-0

[Event "*** Titled Tuesday Blitz"]
[Site "Chess.com"]
[Date "2018.10.02"]
[Round "2"]
[White "Didici"]
[Black "Shant_Sargsyan"]
[Result "0-1"]
[WhiteElo "2610"]
[BlackElo "2905"]
[TimeControl "180+2"]
[EndTime "13:21:42 PDT"]
[Termination "Shant_Sargsyan won by resignation"]

1. d4 {[%clk 0:03:00.1]} 1... Nf6 {[%clk 0:03:00.8]} 2. c4 {[%clk 0:03:00.2]}
2... e6 {[%clk 0:03:02.3]} 3. Nc3 {[%clk 0:03:01]} 3... Bb4 {[%clk 0:03:02.8]}
4. e3 {[%clk 0:03:02.3]} 4... O-O {[%clk 0:03:03.7]} 5. Bd3 {[%clk 0:03:03.8]}
5... d5 {[%clk 0:03:04.6]} 6. Nf3 {[%clk 0:03:05.4]} 6... dxc4 {[%clk 0:03:06]}
7. Bxc4 {[%clk 0:03:07.3]} 7... c5 {[%clk 0:03:07.9]} 8. O-O {[%clk 0:03:07.9]}
8... Nc6 {[%clk 0:03:09.1]} 9. Bb5 {[%clk 0:02:57.1]} 9... Bd7 {[%clk
0:03:06.2]} 10. Qe2 {[%clk 0:02:53.4]} 10... a6 {[%clk 0:03:05]} 11. Bd3 {[%clk
0:02:52.9]} 11... Rc8 {[%clk 0:03:04.5]} 12. Rd1 {[%clk 0:02:48.1]} 12... Qe7
{[%clk 0:03:04.2]} 13. Na4 {[%clk 0:02:34.4]} 13... Nxd4 {[%clk 0:03:02.2]} 14.
exd4 {[%clk 0:02:36.3]} 14... Bxa4 {[%clk 0:03:02.8]} 15. b3 {[%clk 0:02:36.7]}
15... Bc6 {[%clk 0:03:01.8]} 16. dxc5 {[%clk 0:02:33.1]} 16... Bxc5 {[%clk
0:03:02.4]} 17. Bb2 {[%clk 0:02:33.7]} 17... Rfd8 {[%clk 0:03:02.5]} 18. Ne5
{[%clk 0:02:20.4]} 18... Bd5 {[%clk 0:02:58.7]} 19. Kh1 {[%clk 0:02:04.9]} 19...
Ba3 {[%clk 0:02:57.2]} 20. Bd4 {[%clk 0:01:54.1]} 20... b5 {[%clk 0:02:35.1]}
21. f3 {[%clk 0:01:32.5]} 21... Ba8 {[%clk 0:02:32.6]} 22. Bb6 {[%clk
0:01:31.3]} 22... Rd5 {[%clk 0:02:30]} 23. Bf2 {[%clk 0:01:25.4]} 23... Bd6
{[%clk 0:02:28.7]} 24. f4 {[%clk 0:01:11.8]} 24... Rd8 {[%clk 0:02:22.5]} 25.
Bh4 {[%clk 0:01:11.5]} 25... h6 {[%clk 0:01:56.2]} 26. Rd2 {[%clk 0:00:43.1]}
26... Bb4 {[%clk 0:01:53.5]} 27. Rdd1 {[%clk 0:00:43.7]} 27... Rd4 {[%clk
0:01:41.5]} 28. Rf1 {[%clk 0:00:34.5]} 28... Kf8 {[%clk 0:01:32.1]} 29. Rad1
{[%clk 0:00:34.7]} 29... Qd6 {[%clk 0:01:22.4]} 30. Bxf6 {[%clk 0:00:26.6]}
30... gxf6 {[%clk 0:01:24.3]} 31. Qh5 {[%clk 0:00:28.1]} 31... fxe5 {[%clk
0:01:14.5]} 32. fxe5 {[%clk 0:00:30]} 32... Qe7 {[%clk 0:01:14.9]} 33. Qxh6+
{[%clk 0:00:21.6]} 33... Ke8 {[%clk 0:01:15.7]} 34. Qh8+ {[%clk 0:00:16.5]}
34... Qf8 {[%clk 0:01:13.8]} 35. Bxb5+ {[%clk 0:00:18]} 35... axb5 {[%clk
0:01:10.5]} 36. Qh7 {[%clk 0:00:19.2]} 0-1

[Event "*** Titled Tuesday Blitz"]
[Site "Chess.com"]
[Date "2018.10.02"]
[Round "2"]
[White "Gerasimenyuk_Miha"]
[Black "cool4chess"]
[Result "0-1"]
[WhiteElo "2240"]
[BlackElo "2147"]
[TimeControl "180+2"]
[EndTime "13:21:47 PDT"]
[Termination "cool4chess won by checkmate"]

1. d4 {[%clk 0:03:01.9]} 1... d5 {[%clk 0:02:58.8]} 2. c4 {[%clk 0:02:59.3]}
2... c6 {[%clk 0:03:00.1]} 3. Nc3 {[%clk 0:03:00.8]} 3... Nf6 {[%clk 0:03:00.9]}
4. Nf3 {[%clk 0:03:02.4]} 4... e6 {[%clk 0:03:01.4]} 5. Bg5 {[%clk 0:03:04.3]}
5... dxc4 {[%clk 0:03:02.2]} 6. e4 {[%clk 0:03:05.3]} 6... b5 {[%clk 0:03:03.5]}
7. e5 {[%clk 0:03:06.2]} 7... h6 {[%clk 0:03:04.9]} 8. Bh4 {[%clk 0:03:07.6]}
8... g5 {[%clk 0:03:06.2]} 9. Nxg5 {[%clk 0:03:08.7]} 9... hxg5 {[%clk
0:03:07.5]} 10. Bxg5 {[%clk 0:03:10.6]} 10... Nbd7 {[%clk 0:03:08.4]} 11. exf6
{[%clk 0:03:11.7]} 11... Bb7 {[%clk 0:03:09.5]} 12. g3 {[%clk 0:03:12.7]} 12...
Qb6 {[%clk 0:03:07.6]} 13. Bg2 {[%clk 0:03:13]} 13... O-O-O {[%clk 0:03:08.9]}
14. O-O {[%clk 0:03:13]} 14... c5 {[%clk 0:03:05.8]} 15. d5 {[%clk 0:03:12.7]}
15... b4 {[%clk 0:03:07.2]} 16. Rb1 {[%clk 0:02:58]} 16... Qa6 {[%clk
0:03:07.1]} 17. a3 {[%clk 0:02:52]} 17... bxc3 {[%clk 0:02:59.1]} 18. bxc3
{[%clk 0:02:51.8]} 18... Nb6 {[%clk 0:02:55.9]} 19. Qg4 {[%clk 0:02:21.1]} 19...
Bxd5 {[%clk 0:02:51.2]} 20. Bxd5 {[%clk 0:02:18.6]} 20... Rxd5 {[%clk
0:02:53.1]} 21. Rfe1 {[%clk 0:02:17.6]} 21... Nd7 {[%clk 0:02:43.4]} 22. Bf4
{[%clk 0:02:17]} 22... Bd6 {[%clk 0:02:43.5]} 23. Bxd6 {[%clk 0:02:09.6]} 23...
Qxd6 {[%clk 0:02:41]} 24. Qxc4 {[%clk 0:02:08.7]} 24... Nb6 {[%clk 0:02:38.4]}
25. Qg4 {[%clk 0:02:07.6]} 25... Nd7 {[%clk 0:02:04.4]} 26. Qa4 {[%clk
0:02:01.2]} 26... a6 {[%clk 0:01:51.3]} 27. Rb2 {[%clk 0:01:53.5]} 27... Ne5
{[%clk 0:00:34.2]} 28. Reb1 {[%clk 0:01:43.5]} 28... Nf3+ {[%clk 0:00:33.5]} 29.
Kg2 {[%clk 0:01:27.6]} 29... Rxh2+ {[%clk 0:00:26.2]} 30. Kxf3 {[%clk
0:01:23.6]} 30... Rd3+ {[%clk 0:00:20.9]} 31. Ke2 {[%clk 0:01:19.5]} 31... Rxf2+
{[%clk 0:00:17]} 32. Kxf2 {[%clk 0:01:15.1]} 32... Qxg3+ {[%clk 0:00:17.7]} 33.
Ke2 {[%clk 0:01:14.1]} 33... Qf3+ {[%clk 0:00:07.8]} 34. Ke1 {[%clk 0:01:14.8]}
34... Re3+ {[%clk 0:00:09.7]} 35. Kd2 {[%clk 0:01:13.3]} 35... Re2+ {[%clk
0:00:06]} 36. Kc1 {[%clk 0:01:08.1]} 36... Qxc3+ {[%clk 0:00:06.8]} 37. Rc2
{[%clk 0:01:05.2]} 37... Re1# {[%clk 0:00:08.7]} 0-1

[Event "*** Titled Tuesday Blitz"]
[Site "Chess.com"]
[Date "2018.10.02"]
[Round "2"]
[White "johnathan113"]
[Black "Sanan_Sjugirov"]
[Result "1-0"]
[WhiteElo "2544"]
[BlackElo "2804"]
[TimeControl "180+2"]
[EndTime "13:21:48 PDT"]
[Termination "johnathan113 won by resignation"]

1. e4 {[%clk 0:03:01.9]} 1... c5 {[%clk 0:03:00.8]} 2. Nf3 {[%clk 0:03:02.8]}
2... e6 {[%clk 0:03:01.8]} 3. d4 {[%clk 0:03:03.2]} 3... cxd4 {[%clk 0:03:03.7]}
4. Nxd4 {[%clk 0:03:05.1]} 4... Nc6 {[%clk 0:03:05]} 5. Nc3 {[%clk 0:03:06.6]}
5... a6 {[%clk 0:03:06.1]} 6. g3 {[%clk 0:03:08]} 6... Nf6 {[%clk 0:03:05.7]} 7.
Bg2 {[%clk 0:03:07.4]} 7... d6 {[%clk 0:03:06.9]} 8. Nxc6 {[%clk 0:02:59.2]}
8... bxc6 {[%clk 0:03:07.1]} 9. e5 {[%clk 0:03:00.3]} 9... Nd5 {[%clk
0:03:07.5]} 10. exd6 {[%clk 0:02:59.4]} 10... Bxd6 {[%clk 0:03:07.4]} 11. Ne4
{[%clk 0:02:58]} 11... Be7 {[%clk 0:02:16.5]} 12. c4 {[%clk 0:02:54.2]} 12...
Nb4 {[%clk 0:02:07.4]} 13. O-O {[%clk 0:02:49.5]} 13... O-O {[%clk 0:01:56]} 14.
Be3 {[%clk 0:02:22.4]} 14... Qxd1 {[%clk 0:01:31.4]} 15. Raxd1 {[%clk
0:02:24.3]} 15... Nxa2 {[%clk 0:01:29.4]} 16. Bc5 {[%clk 0:02:25.4]} 16... Bxc5
{[%clk 0:01:28.2]} 17. Nxc5 {[%clk 0:02:27.3]} 17... Rb8 {[%clk 0:01:15.4]} 18.
Rd2 {[%clk 0:02:21.8]} 18... Nb4 {[%clk 0:01:05.7]} 19. Rfd1 {[%clk 0:02:16.1]}
19... e5 {[%clk 0:01:03.8]} 20. h3 {[%clk 0:01:56.7]} 20... h5 {[%clk
0:00:49.3]} 21. Kh2 {[%clk 0:01:58]} 21... Bf5 {[%clk 0:00:48.8]} 22. Bf3 {[%clk
0:01:59.5]} 22... Rfe8 {[%clk 0:00:23.4]} 23. Bxh5 {[%clk 0:01:57.7]} 23... Nc2
{[%clk 0:00:20.1]} 24. Nxa6 {[%clk 0:01:50]} 24... Rb6 {[%clk 0:00:12]} 25. Nc7
{[%clk 0:01:42.3]} 25... Re7 {[%clk 0:00:09.4]} 26. Rd8+ {[%clk 0:01:30.6]}
26... Kh7 {[%clk 0:00:10.5]} 27. Ne8 {[%clk 0:01:30]} 27... Nd4 {[%clk
0:00:08.7]} 28. Nd6 {[%clk 0:01:31.2]} 28... Bg6 {[%clk 0:00:06.8]} 29. Bxg6+
{[%clk 0:01:30.4]} 29... Kxg6 {[%clk 0:00:08.7]} 30. Nc8 {[%clk 0:01:27.7]}
30... Reb7 {[%clk 0:00:06.2]} 31. Nxb6 {[%clk 0:01:23.1]} 31... Rxb6 {[%clk
0:00:08.1]} 32. Rb1 {[%clk 0:01:20.3]} 32... Rb4 {[%clk 0:00:06.1]} 33. b3
{[%clk 0:01:13.6]} 33... f6 {[%clk 0:00:05.8]} 34. Rc8 {[%clk 0:01:07.5]} 34...
Rb7 {[%clk 0:00:05.8]} 35. b4 {[%clk 0:01:06.5]} 35... Ra7 {[%clk 0:00:07.3]}
36. b5 {[%clk 0:01:06.7]} 36... cxb5 {[%clk 0:00:09.2]} 37. cxb5 {[%clk
0:01:08.6]} 37... Rb7 {[%clk 0:00:10.7]} 38. b6 {[%clk 0:01:09.5]} 1-0

[Event "*** Titled Tuesday Blitz"]
[Site "Chess.com"]
[Date "2018.10.02"]
[Round "2"]
[White "sergoy"]
[Black "bourideu"]
[Result "1-0"]
[WhiteElo "2778"]
[BlackElo "2450"]
[TimeControl "180+2"]
[EndTime "13:22:16 PDT"]
[Termination "sergoy won by resignation"]

1. d4 {[%clk 0:03:00.6]} 1... Nf6 {[%clk 0:02:58.4]} 2. Nf3 {[%clk 0:03:01.3]}
2... d5 {[%clk 0:02:56.4]} 3. c4 {[%clk 0:03:02.1]} 3... e6 {[%clk 0:02:57.1]}
4. g3 {[%clk 0:03:03.1]} 4... Bb4+ {[%clk 0:02:55]} 5. Bd2 {[%clk 0:03:03.4]}
5... Be7 {[%clk 0:02:56.6]} 6. Bg2 {[%clk 0:03:03.6]} 6... O-O {[%clk
0:02:58.2]} 7. O-O {[%clk 0:03:04.2]} 7... c6 {[%clk 0:02:59.7]} 8. b3 {[%clk
0:03:03.9]} 8... Nbd7 {[%clk 0:02:59.4]} 9. Bc3 {[%clk 0:03:03.4]} 9... a5
{[%clk 0:02:52.5]} 10. Nbd2 {[%clk 0:03:03.5]} 10... b5 {[%clk 0:02:53.4]} 11.
Qc2 {[%clk 0:03:01.5]} 11... Ba6 {[%clk 0:02:52.4]} 12. Rfe1 {[%clk 0:03:01.5]}
12... bxc4 {[%clk 0:02:21.4]} 13. bxc4 {[%clk 0:02:58.1]} 13... dxc4 {[%clk
0:02:22.6]} 14. e4 {[%clk 0:02:58.9]} 14... Rb8 {[%clk 0:01:48.9]} 15. Bf1
{[%clk 0:02:50.5]} 15... c5 {[%clk 0:01:40.8]} 16. Nxc4 {[%clk 0:02:46.3]} 16...
Bxc4 {[%clk 0:01:34.7]} 17. Bxc4 {[%clk 0:02:44.6]} 17... cxd4 {[%clk
0:01:34.5]} 18. Bxd4 {[%clk 0:02:43]} 18... Bc5 {[%clk 0:01:34.8]} 19. e5 {[%clk
0:02:35.7]} 19... Ng4 {[%clk 0:01:29.9]} 20. Rad1 {[%clk 0:02:21.2]} 20... Qe7
{[%clk 0:00:59.9]} 21. h3 {[%clk 0:02:01.9]} 21... Nh6 {[%clk 0:01:00.6]} 22. g4
{[%clk 0:02:02.4]} 22... Rfc8 {[%clk 0:01:00.9]} 23. Qe2 {[%clk 0:01:41.2]}
23... Nf8 {[%clk 0:00:57.3]} 24. Ba6 {[%clk 0:01:36.7]} 24... Rd8 {[%clk
0:00:56]} 25. Qe3 {[%clk 0:01:05.9]} 25... Bb4 {[%clk 0:00:38.5]} 26. Rf1 {[%clk
0:01:01.8]} 26... Rd7 {[%clk 0:00:21.6]} 27. a4 {[%clk 0:00:59.4]} 27... Rbd8
{[%clk 0:00:21.5]} 28. Bb5 {[%clk 0:01:00.4]} 28... Rd5 {[%clk 0:00:21.9]} 29.
Bc6 {[%clk 0:00:59.5]} 29... Ng6 {[%clk 0:00:14.7]} 30. Bxd5 {[%clk 0:00:58.6]}
30... Rxd5 {[%clk 0:00:16.2]} 31. Bc3 {[%clk 0:00:58.3]} 31... Bc5 {[%clk
0:00:14.4]} 32. Qe4 {[%clk 0:00:57.3]} 32... Rd7 {[%clk 0:00:10.8]} 33. Qc6
{[%clk 0:00:53.9]} 33... Rxd1 {[%clk 0:00:10.9]} 34. Rxd1 {[%clk 0:00:55.8]}
34... Kh8 {[%clk 0:00:06.6]} 35. Bd2 {[%clk 0:00:55.9]} 35... Ng8 {[%clk
0:00:06.4]} 36. Bg5 {[%clk 0:00:56.9]} 36... f6 {[%clk 0:00:06.4]} 37. exf6
{[%clk 0:00:58]} 37... gxf6 {[%clk 0:00:08]} 38. Bd2 {[%clk 0:00:58.2]} 38...
Kg7 {[%clk 0:00:04.4]} 39. Bc3 {[%clk 0:00:56.4]} 39... Kf8 {[%clk 0:00:03.9]}
40. Rd7 {[%clk 0:00:56.7]} 1-0